Cogmind - Beta 14 --- EXPLORER MODE // 2024.11.26 @ 19:53:50 // AFD2021/Volatile Player: mrjoebobfred Result: Destroyed by G-67 Veteran with Plasma Rifle Performance ------------- Evolutions (4) 2000 Regions Visited (15) 3000 Robots Destroyed (265) 1325 Value Destroyed (12677) 12677 Prototype IDs (53) 1060 Alien Tech Used (0) 0 Bonus (6935) 6935 TOTAL SCORE: 26997 Bonus ------- High Alert Combat Kills 1246 Follower Combat Kills 1372 Entered Garrisons 600 Used RIF Installer 2000 Network Hubs Disabled 400 Aligned with FarCom 300 Built Enhanced Grunts 300 A7 Reached Mainframe 300 Met R17 at Cetus 500 Friendly Fire -83 Cogmind --------- Core Integrity 0/850 Matter 300/300 Energy 81/100 System Corruption 19% Temperature Cool (18) Movement Core (50) Location -6/Hub_04(d) Parts ------- > --- POWER (2) -------- (None) > --- PROPULSION (4) --- (None) > --- UTILITY (8) ------ (None) > --- WEAPON (2) ------- (None) > --- INVENTORY (5) ---- Gravity Neutralizer Improved Utility Shielding Centrium Medium Armor Plating Relay Coupler [Duelist] (41) Advanced Plasma Cannon Peak State ------------ > --- POWER ------------ Quantum Reactor Quantum Reactor > --- PROPULSION ------- Centrium Heavy Treads Armored Huge Wheel > --- UTILITY ---------- Advanced Heat Sink High-capacity Storage Unit Centrium Medium Armor Plating Improved Focal Shield Improved Hardlight Generator Advanced Hacking Suite System Shield Relay Coupler [Sentry] > --- WEAPON ----------- Cooled Particle Cannon Ion Burst Cannon > --- INVENTORY -------- Advanced Heat Sink Gravity Neutralizer Improved Utility Shielding Improved Utility Shielding Improved Thermal Shield Improved System Shield Relay Coupler [Duelist] Relay Coupler [Sentry] Relay Coupler [Specialist] Advanced Plasma Cannon Remote Datajack Heavy Flail [Rating: 99] Favorites ----------- Power Fusion Reactor Engine Reinforced Deuterium Engine Power Core Micro Fission Core Reactor Fusion Reactor Propulsion Light Treads Treads Light Treads Wheel Armored Huge Wheel Utility Large Storage Unit Device Hardlight Generator Storage Large Storage Unit Hackware Relay Coupler [Sentry] Protection Improved Light Armor Plating Weapon Advanced Plasma Cannon Energy Cannon Advanced Plasma Cannon Ballistic Gun Assault Rifle Ballistic Cannon Flak Cannon Special Weapon Remote Datajack Impact Weapon Heavy Flail Special Melee Weapon Improved Datajack Build | -11 -10 -10 -10 -9 -8 -8 -8 -8 -7 -7 -6 -6 -6 -6 -6 ------- Run | Yrd Mat Min Exi Min Mat Gar Mat Gar Fac Gar Fac Ext Cet Arc Hub Slots Evolved 9 | . 1 . . . 4 . . . 2 . 2 . . . . Power 1 | . . . . . . . . . 1 . . . . . . Propulsion 2 | . . . . . 2 . . . . . . . . . . Utility 6 | . 1 . . . 2 . . . 1 . 2 . . . . Weapon . | . . . . . . . . . . . . . . . . Parts Attached 202 | 7 4 3 . 3 27 27 7 14 19 18 42 12 5 2 12 Power 16 | 1 . 2 . . 3 1 . . 3 . 1 2 2 . 1 Engine 9 | 1 . 1 . . 3 . . . 1 . 1 2 . . . Core 2 | . . 1 . . . 1 . . . . . . . . . Reactor 5 | . . . . . . . . . 2 . . . 2 . 1 Propulsion 17 | 2 . . . . 5 2 4 . 1 . 1 1 1 . . Treads 15 | 2 . . . . 5 2 3 . 1 . 1 . 1 . . Leg . | . . . . . . . . . . . . . . . . Wheel 2 | . . . . . . . 1 . . . . 1 . . . Hover . | . . . . . . . . . . . . . . . . Flight . | . . . . . . . . . . . . . . . . Utility 79 | 2 1 1 . 1 8 8 1 10 3 10 18 7 2 . 7 Device 38 | 1 . 1 . 1 3 3 . 7 2 6 4 7 1 . 2 Storage 3 | 1 1 . . . . . . . . . 1 . . . . Processor . | . . . . . . . . . . . . . . . . Hackware 23 | . . . . . . 4 1 3 1 3 10 . . . 1 Protection 15 | . . . . . 5 1 . . . 1 3 . 1 . 4 Artifact . | . . . . . . . . . . . . . . . . Weapon 90 | 2 3 . . 2 11 16 2 4 12 8 22 2 . 2 4 Energy Gun . | . . . . . . . . . . . . . . . . Energy Cannon 42 | . 3 . . 2 4 4 1 2 6 4 11 1 . 1 3 Ballistic Gun 6 | 2 . . . . 2 2 . . . . . . . . . Ballistic Cannon 7 | . . . . . 3 4 . . . . . . . . . Launcher . | . . . . . . . . . . . . . . . . Special Weapon 24 | . . . . . . 1 1 2 5 4 8 1 . 1 1 Impact Weapon 8 | . . . . . 2 2 . . 1 . 3 . . . . Slashing Weapon . | . . . . . . . . . . . . . . . . Piercing Weapon . | . . . . . . . . . . . . . . . . Special Melee Weapon 3 | . . . . . . 3 . . . . . . . . . Unidentified Prototypes 8 | . . . . 1 . . . . 1 1 2 . 2 . 1 Parts Lost 19 | . 1 . . . 2 . . . . 2 5 . . . 9 Power 4 | . 1 . . . . . . . . . 1 . . . 2 Propulsion 3 | . . . . . 1 . . . . . . . . . 2 Utility 10 | . . . . . 1 . . . . 2 3 . . . 4 Weapon 2 | . . . . . . . . . . . 1 . . . 1 Highest Loss Streak 6 | . 1 . . . 1 . . . . 1 2 . . . 6 To Critical Strikes 1 | . . . . . . . . . . . 1 . . . . Average Slot Usage (%) 82 | . 78 85 88 82 83 96 89 82 80 84 79 77 86 83 80 Engine 3 | . 4 4 . . 5 7 . . 2 . 1 8 1 . . Core 2 | . . 2 12 12 2 . 8 8 6 . . . . . . Reactor 3 | . . . . . . . . . . 14 9 . 10 12 10 Treads 14 | . 25 25 25 25 23 32 22 8 6 7 5 6 6 6 5 Wheel 3 | . . . . . . . 1 8 7 7 6 5 6 6 5 Device 13 | . 12 15 25 12 14 10 11 12 14 14 15 11 17 18 17 Storage 7 | . 12 12 12 12 8 8 8 8 7 7 6 6 6 6 5 Hackware 7 | . . . . . . 7 4 3 5 5 13 18 18 14 11 Protection 8 | . . . . . 11 11 16 16 14 13 7 6 6 6 9 Energy Cannon 12 | . 24 25 13 20 10 6 16 14 11 11 9 11 12 10 11 Peak Build Rating 99 | 7 10 12 12 20 30 53 57 60 70 81 89 82 99 99 99 Average Rating 53 | 5 8 9 11 12 24 32 55 57 62 74 81 78 96 95 91 On Entrance 46 | . 7 8 12 10 14 29 53 57 60 70 81 70 82 99 95 Naked Turns 19 | . . . . . . . . . . . . . . . 19 Heaviest Build 116 | 20 34 35 35 34 55 55 55 57 70 81 105 103 113 113 116 Greatest Support 115 | 40 40 40 40 40 80 110 115 70 70 75 75 75 80 80 80 Greatest Overweight (x) 4 | 2 . . . . 1 . 1 2 2 2 3 3 4 1 4 Average Overweight (x) 1 | . . . . . . . . . 1 1 1 2 2 1 3 Largest Inventory Capacity 20 | 10 15 15 15 15 15 15 15 15 15 15 20 20 20 20 20 Average Capacity 16 | 8 14 15 15 15 15 15 15 15 15 15 18 20 20 20 19 Most Carried 20 | . 5 5 9 10 15 15 15 15 15 15 20 14 13 12 12 Average Carried 12 | . 4 5 6 8 12 14 15 14 14 13 16 13 12 12 11 Final Capacity 20 | 10 15 15 15 15 15 15 15 15 15 15 20 20 20 20 5 Final Carried 15 | . 5 5 9 9 15 15 15 15 13 15 14 13 12 12 5 Class Distribution -------------------- 47% | Hacker-Mutant 45% | Bothacker-Mutant 4% | Hacker-Skirmisher Dominant Class ---------------- Hacker-Mutant | -10/Materials Hacker-Mutant | -10/Mines Hacker-Mutant | -10/Exiles Hacker-Mutant | -9/Mines Hacker-Mutant | -8/Materials Bothacker-Mutant | -8/Garrison Bothacker-Mutant | -8/Materials Bothacker-Mutant | -8/Garrison Bothacker-Mutant | -7/Factory Bothacker-Mutant | -7/Garrison Bothacker-Mutant | -6/Factory Hacker-Mutant | -6/Extension Hacker-Mutant | -6/Cetus Hacker-Mutant | -6/Archives Hacker-Mutant | -6/Hub_04(d) Resources | -11 -10 -10 -10 -9 -8 -8 -8 -8 -7 -7 -6 -6 -6 -6 -6 ----------- Run | Yrd Mat Min Exi Min Mat Gar Mat Gar Fac Gar Fac Ext Cet Arc Hub Matter Collected 3185 | 233 62 40 . 20 401 485 85 131 111 615 595 226 6 . 175 Remotely . | . . . . . . . . . . . . . . . . Salvage Created 9786 | . 299 207 . 126 1671 606 299 705 775 869 2354 971 64 159 681 Parts 480 | . 29 14 . 8 84 25 12 47 29 38 99 54 8 5 28 Haulers Intercepted 5 | . . . . . 2 . . . 1 . . . . . 2 Recyclers Shooed 3 | . . . . . . . . . . . 2 1 . . . Parts Field Recycled . | . . . . . . . . . . . . . . . . Retrieved Matter . | . . . . . . . . . . . . . . . . Parts Self-Destructed . | . . . . . . . . . . . . . . . . Prevented . | . . . . . . . . . . . . . . . . Kills | -11 -10 -10 -10 -9 -8 -8 -8 -8 -7 -7 -6 -6 -6 -6 -6 ------- Run | Yrd Mat Min Exi Min Mat Gar Mat Gar Fac Gar Fac Ext Cet Arc Hub Combat Hostiles Destroyed 219 | . 14 6 . 4 38 16 4 26 12 20 50 18 1 2 8 Guns 6 | . . . . . 3 3 . . . . . . . . . Cannons 149 | . 10 4 . 2 31 11 3 12 8 10 36 13 . 2 7 AOE 46 | . 4 2 . 1 4 2 . 12 2 6 9 2 1 . 1 Classes Destroyed 18 | . 4 . . . 7 1 . . . 1 3 1 . 1 . Worker 13 | . 2 . . . . . . . 2 . 5 2 . . 2 Builder 15 | . . . . . 6 . . . 2 . 3 4 . . . Tunneler 1 | . . . . . . . . . . . . 1 . . . Hauler 5 | . . . . . 2 . . . 1 . . . . . 2 Recycler 5 | . . . . . 1 . 1 . . . 1 1 . . 1 Mechanic 1 | . . . . . . . . . . . 1 . . . . Operator 1 | . . . . . . . . . . . . . . 1 . Watcher 8 | . 2 . . . 1 . . . . . 2 1 2 . . Swarmer 55 | . 10 2 . 1 3 3 . 13 . 6 14 3 . . . Saboteur 1 | . . . . . . . . . . . 1 . . . . Grunt 78 | . 4 4 . 3 21 6 2 4 7 5 16 4 . . 2 Brawler 7 | . . . . . 3 . . 1 . . 2 1 . . . Duelist 7 | . . . . . 1 . . . 1 3 1 1 . . . Sentry 26 | . . . . . 9 . 1 1 . . 5 4 . 2 4 Hunter 17 | . . . . . 1 4 1 4 . . 2 4 . . 1 Programmer 21 | . . . . . . 3 . 3 4 4 6 . . . 1 Behemoth 3 | . . . . . . . . . . 2 . 1 . . . Cetus Guard 1 | . . . . . . . . . . . . . 1 . . Assembled 3 | . . . . . . . . . . . 3 . . . . Best Kill Streak 9 | . 3 2 . 3 9 2 3 8 7 6 5 8 2 3 5 Combat Bots Only 8 | . 2 2 . 3 7 2 2 8 4 6 5 3 1 2 2 Max Kills in Single Turn 8 | . 3 2 . 2 5 2 2 6 4 4 4 8 1 2 3 Gunslinging . | . . . . . . . . . . . . . . . . Exploded 5 | . 1 1 . 1 2 1 . 5 1 3 2 1 1 . 1 Melee . | . . . . . . . . . . . . . . . . Uniques/NPCs Destroyed . | . . . . . . . . . . . . . . . . Combat | -11 -10 -10 -10 -9 -8 -8 -8 -8 -7 -7 -6 -6 -6 -6 -6 -------- Run | Yrd Mat Min Exi Min Mat Gar Mat Gar Fac Gar Fac Ext Cet Arc Hub Hostile Shots Fired 1380 | . 26 9 . 5 154 50 3 108 22 98 397 237 28 13 230 Missed 483 | . 7 1 . 1 63 20 1 32 9 29 146 90 11 7 66 Damage Taken 7644 | . 268 59 . 19 863 294 6 476 248 680 1951 370 501 30 1879 Core 1284 | . 14 5 . 7 90 41 . 8 126 143 180 20 37 . 613 Absorbed by Shields 1461 | . . . . . 108 72 . 106 . 106 96 587 115 36 235 Reduced by Siege Mode 24 | . . . . . . . . . . 13 . 9 2 . . Redirected to Shielding 162 | . . . . . 4 . . 18 5 23 . . . . 112 Ignored by Resistances 7156 | . 90 36 . 15 588 216 11 432 115 631 2024 925 526 73 1474 Regen/Repaired (Parts) 1917 | . 89 . . . 85 . . . . . 1340 403 . . . Core Remaining (%) 81 | 100 . . . 89 . . . 74 . 61 . . . . . Volleys Fired 509 | . 15 6 . 4 84 34 10 42 25 68 134 52 7 8 20 Largest 2 | . 2 2 . 2 2 2 2 2 2 2 2 2 2 2 2 Hottest 200 | . 136 136 . 136 136 196 196 196 196 196 198 130 130 130 200 Shots Fired 850 | . 29 12 . 8 164 57 16 65 40 94 226 77 15 12 35 Gun 36 | . . . . . 24 12 . . . . . . . . . Cannon 750 | . 29 12 . 8 140 45 15 56 31 75 204 76 15 10 34 Launcher . | . . . . . . . . . . . . . . . . Special 64 | . . . . . . . 1 9 9 19 22 1 . 2 1 Kinetic 88 | . . . . . 68 20 . . . . . . . . . Thermal 698 | . 29 12 . 8 96 37 15 56 31 75 204 76 15 10 34 Explosive . | . . . . . . . . . . . . . . . . Electromagnetic . | . . . . . . . . . . . . . . . . Robot Hit Streak 36 | . 9 18 . 25 36 18 11 15 10 29 27 27 14 14 13 Robot Miss Streak 5 | . 2 . . . 4 2 1 1 1 4 4 3 1 1 5 Penetration Max . | . . . . . . . . . . . . . . . . Secondary Targets 1 | . . . . . 1 . . . . . . . . . . Max Gunslinging Chain 1 | . . . . . 1 . . . . . . . . . . Autonomous 12 | . . . . . . 12 . . . . . . . . . Shots Hit Robots 652 | . 18 9 . 7 131 50 11 41 29 67 180 63 12 10 24 Core Hits 462 | . 18 6 . 3 114 34 6 28 25 23 113 45 15 6 26 Critical Kills 10 | . . . . 1 1 . 1 . 1 2 2 2 . . . Critical Parts Destroyed . | . . . . . . . . . . . . . . . . Critical Strikes 10 | . . . . 1 1 . 1 . 1 2 2 2 . . . Meltdown 9 | . . . . 1 . . 1 . 1 2 2 2 . . . Destroy 1 | . . . . . 1 . . . . . . . . . . Melee Attacks 19 | . . . . . 2 14 . . 1 . 2 . . . . Impact 13 | . . . . . 2 8 . . 1 . 2 . . . . Slashing . | . . . . . . . . . . . . . . . . Piercing . | . . . . . . . . . . . . . . . . Sneak Attacks 1 | . . . . . . 1 . . . . . . . . . Combat Hostiles . | . . . . . . . . . . . . . . . . Follow-up Attacks . | . . . . . . . . . . . . . . . . Damage Inflicted 30077 | . 1230 337 . 253 4433 1363 424 2655 1629 2709 8818 3140 680 714 1692 Guns 594 | . . . . . 289 305 . . . . . . . . . Cannons 18718 | . 384 206 . 155 2535 863 370 1135 810 1736 6026 2646 525 361 966 Explosions 10754 | . 846 131 . 98 1609 195 54 1520 819 973 2792 494 155 353 715 Melee . | . . . . . . . . . . . . . . . . Ramming 11 | . . . . . . . . . . . . . . . 11 Kinetic 2181 | . . . . . 1318 468 18 . 167 44 86 . . . 80 Thermal 22572 | . 404 302 . 155 2212 831 406 2138 923 2438 7475 2736 680 662 1210 Explosive 3532 | . 46 35 . 98 652 17 . 410 539 223 1061 358 . 52 41 Electromagnetic 881 | . 36 . . . 251 47 . 107 . 4 196 46 . . 194 Impact . | . . . . . . . . . . . . . . . . Slashing . | . . . . . . . . . . . . . . . . Piercing . | . . . . . . . . . . . . . . . . Entropic 900 | . 744 . . . . . . . . . . . . . 156 Highest Corruption 19 | . . . . . . 2 2 3 . 2 2 2 1 1 19 Average Corruption 1 | . . . . . . 1 2 2 . 1 1 1 1 1 2 Corruption Purged 2 | . . . . . . . . . . . . 2 . . . Corruption Blocked . | . . . . . . . . . . . . . . . . Effects 116 | . . . . . . 8 4 24 . 18 37 11 1 . 13 Message Errors 27 | . . . . . . 1 2 5 . 2 12 2 . . 3 Matter Fused 34 | . . . . . . 3 1 3 . 6 10 6 . . 5 Heat Flow Errors 13 | . . . . . . 1 . 3 . 3 5 . . . 1 Energy Discharges 11 | . . . . . . 1 . 3 . 4 2 . . . 1 Parts Rejected 1 | . . . . . . . . . . . . . . . 1 Parts Fused 2 | . . . . . . . . 1 . . . . . . 1 Data Loss (minor) 11 | . . . . . . . . 4 . 3 3 1 . . . Data Loss (major) 5 | . . . . . . 1 1 . . . 2 1 . . . Misfires 8 | . . . . . . 1 . 4 . . 1 1 1 . . Alerts 2 | . . . . . . . . . . . 2 . . . . Misdirections 1 | . . . . . . . . . . . . . . . 1 Weapon Failures 1 | . . . . . . . . 1 . . . . . . . Overload Shots . | . . . . . . . . . . . . . . . . Overflow Damage 1115 | . 69 3 . 4 100 36 . 195 107 156 339 13 . 80 13 Projectiles 435 | . . 3 . 4 16 36 . 70 61 37 194 3 . . 11 Explosions 680 | . 69 . . . 84 . . 125 46 119 145 10 . 80 2 Melee . | . . . . . . . . . . . . . . . . Knockbacks 17 | . . . . . 12 5 . . . . . . . . . Impact . | . . . . . . . . . . . . . . . . Kinetic 17 | . . . . . 12 5 . . . . . . . . . Secondary . | . . . . . . . . . . . . . . . . Self-Inflicted Damage 709 | . 163 . . . 27 . . . . 12 338 . . . 169 Shots 19 | . 2 . . . 3 . . . . 1 9 . . . 4 Rammed 3 | . . . . . . . . . . . . . . . 3 Targets Rammed 3 | . . . . . . . . . . . . . . . 3 Kicked . | . . . . . . . . . . . . . . . . Crushed . | . . . . . . . . . . . . . . . . Highest Temperature 708 | . 198 264 . 108 473 161 333 494 504 708 565 339 207 84 320 Average Temperature 127 | . 62 97 . 58 124 30 137 142 154 164 146 108 74 46 99 Received Heat Transfer 2194 | . 33 39 . 6 602 54 9 228 54 209 728 117 18 10 87 Effects 43 | . . . . . 5 . 3 5 2 13 12 2 . . 1 Shutdowns 7 | . . . . . 2 . . . 1 2 2 . . . . Energy Bleed 9 | . . . . . . . . 3 . 2 2 1 . . 1 Interference 15 | . . . . . . . 3 2 . 3 6 1 . . . Matter Decay 4 | . . . . . . . . . . 2 2 . . . . Short Circuit 1 | . . . . . 1 . . . . . . . . . . Damage (minor) 3 | . . . . . . . . . . 3 . . . . . Damage (major) 2 | . . . . . 2 . . . . . . . . . . Damage (core) 2 | . . . . . . . . . 1 1 . . . . . Siege Activations 5 | . . . . . . . . 1 . 2 . 1 1 . . Total Turns 71 | . . . . . . . . 6 . 19 . 40 6 . . Longest Duration 40 | . . . . . . . . 6 . 14 . 40 6 . . Robots Corrupted . | . . . . . . . . . . . . . . . . Combat Hostiles . | . . . . . . . . . . . . . . . . Parts Fried 3 | . . . . . 1 . . . 1 . 1 . . . . Impact Corruptions . | . . . . . . . . . . . . . . . . Robots Melted 18 | . . . . 1 . . 1 2 2 4 5 3 . . . Combat Hostiles 18 | . . . . 1 . . 1 2 2 4 5 3 . . . Parts Melted 67 | . 2 1 . . 6 1 2 5 6 8 28 5 . 1 2 Heat Transferred 29888 | . 746 463 . 259 3605 1151 550 2719 1226 3150 9747 3152 1059 708 1353 Parts Sabotaged . | . . . . . . . . . . . . . . . . Parts Stolen . | . . . . . . . . . . . . . . . . Parts Stripped . | . . . . . . . . . . . . . . . . Power Chain Reactions 11 | . 2 . . . 5 . . 1 . 1 2 . . . . Alert | -11 -10 -10 -10 -9 -8 -8 -8 -8 -7 -7 -6 -6 -6 -6 -6 ------- Run | Yrd Mat Min Exi Min Mat Gar Mat Gar Fac Gar Fac Ext Cet Arc Hub Peak Influence 1473 | . 278 137 . 112 455 1398 684 1473 751 740 627 433 112 90 924 Initial 574 | . . 22 . . 30 138 499 338 574 240 288 19 . . 21 Average 318 | . 96 48 . 23 187 803 578 999 516 446 238 101 51 55 251 Maximum Alert Level 4 | . 1 . . . 2 4 2 4 3 3 2 2 . . 3 Low Security (%) 48 | 100 75 100 . 100 52 6 . . . . 46 86 100 100 71 Level 1 22 | . 24 . . . 45 16 . 7 18 52 32 12 . . 6 Level 2 15 | . . . . . 2 17 100 7 73 34 21 1 . . 11 Level 3 7 | . . . . . . 28 . 46 7 12 . . . . 9 Level 4 5 | . . . . . . 30 . 38 . . . . . . . Level 5 . | . . . . . . . . . . . . . . . . High Security . | . . . . . . . . . . . . . . . . Max Security . | . . . . . . . . . . . . . . . . Squads Dispatched 33 | . 1 . . 1 7 . 1 . 3 . 15 3 . . 2 Investigation 13 | . 1 . . 1 4 . . . . . 6 1 . . . Extermination 8 | . . . . . . . . . 2 . 6 . . . . Reinforcement 7 | . . . . . 1 . 1 . 1 . 2 2 . . . Assault 2 | . . . . . . . . . . . 1 . . . 1 Garrison 3 | . . . . . 2 . . . . . . . . . 1 Intercept . | . . . . . . . . . . . . . . . . Searches Triggered . | . . . . . . . . . . . . . . . . Construction Impeded 2 | . . . . . 1 . . . . . . 1 . . . Haulers Reinforced 1 | . . . . . . . . . . . 1 . . . . Active Scanning Responses . | . . . . . . . . . . . . . . . . Cargo Convoy Interrupts 1 | . . . . . . . . . 1 . . . . . . Alert ID Control Effect 10 | . . . . . . . . . . 3 7 . . . . Stealth | -11 -10 -10 -10 -9 -8 -8 -8 -8 -7 -7 -6 -6 -6 -6 -6 --------- Run | Yrd Mat Min Exi Min Mat Gar Mat Gar Fac Gar Fac Ext Cet Arc Hub Distress Signals 22 | . 3 . . . 3 . 2 . 2 1 3 2 2 . 4 Communications Jammed . | . . . . . . . . . . . . . . . . Distress Signals . | . . . . . . . . . . . . . . . . Times Spotted 379 | . 18 6 . 6 55 31 6 38 20 39 89 25 8 8 30 Peak Tracking Total 15 | . 4 2 . 3 6 5 4 8 4 8 6 3 5 2 15 Tactical Retreats 15 | . 1 . . 1 . . . 2 2 1 4 2 . . 2 Traps | -11 -10 -10 -10 -9 -8 -8 -8 -8 -7 -7 -6 -6 -6 -6 -6 ------- Run | Yrd Mat Min Exi Min Mat Gar Mat Gar Fac Gar Fac Ext Cet Arc Hub Traps Triggered 17 | . . . . . . 1 . 4 . 2 5 3 . . 2 Indirectly . | . . . . . . . . . . . . . . . . Trap Hack Attempts . | . . . . . . . . . . . . . . . . Triggered . | . . . . . . . . . . . . . . . . Disarmed . | . . . . . . . . . . . . . . . . Reprogrammed 19 | . . . . . 9 . . . . . . . . . 10 Reused 8 | . . . . . 5 . . . . . . . . . 3 Traps Extracted . | . . . . . . . . . . . . . . . . Installed . | . . . . . . . . . . . . . . . . Triggered 10 | . . . . . 5 . . . 2 . . . . . 3 Objects Rigged 8 | . . . . . 2 . . . 6 . . . . . . Exploded 2 | . . . . . 1 . . . 1 . . . . . . Machines | -11 -10 -10 -10 -9 -8 -8 -8 -8 -7 -7 -6 -6 -6 -6 -6 ---------- Run | Yrd Mat Min Exi Min Mat Gar Mat Gar Fac Gar Fac Ext Cet Arc Hub Machines Disabled 87 | . 4 2 . 1 8 6 . 5 6 2 24 4 . 4 21 Max in Single Turn 16 | . 2 1 . . 1 1 . 1 3 1 6 1 . 1 16 Garrison Access 2 | . . . . . . . . . . . 1 . . . 1 Garrison Relay 13 | . . . . . . 4 . 6 . 3 . . . . . Network Hub 2 | . . . . . . . . . . . . . . . 2 Machines Repaired . | . . . . . . . . . . . . . . . . Machines Dismantled . | . . . . . . . . . . . . . . . . Machines Sabotaged . | . . . . . . . . . . . . . . . . Overloaded Fab Kills . | . . . . . . . . . . . . . . . . Hacking | -11 -10 -10 -10 -9 -8 -8 -8 -8 -7 -7 -6 -6 -6 -6 -6 --------- Run | Yrd Mat Min Exi Min Mat Gar Mat Gar Fac Gar Fac Ext Cet Arc Hub Machines Accessed 75 | . 11 1 2 2 14 5 1 1 4 1 15 11 1 . 6 Terminals 50 | . 8 1 . 1 9 5 . 1 2 1 5 10 1 . 6 Fabricators 4 | . . . . . . . . . 1 . 3 . . . . Repair Stations 5 | . 1 . . . 1 . . . . . 2 1 . . . Recycling Units 6 | . 2 . . . 1 . . . . . 3 . . . . Scanalyzers 3 | . . . . . 2 . . . . . 1 . . . . Garrison Access 4 | . . . . . 1 . 1 . 1 . 1 . . . . Total Hacks 242 | . 32 7 2 6 46 15 2 2 16 1 61 31 1 . 20 Successful 184 | . 26 4 2 4 37 5 2 1 14 1 48 22 1 . 17 Failed 58 | . 6 3 . 2 9 10 . 1 2 . 13 9 . . 3 Catastrophic 6 | . . . . . . 3 . . . . 1 1 . . 1 Database Lockouts . | . . . . . . . . . . . . . . . . Manual 129 | . 24 7 1 5 26 10 . 2 9 . 19 15 1 . 10 Terminals 155 | . 23 7 . 5 28 15 . 2 10 1 15 28 1 . 20 Fabricators 24 | . . . . . . . . . 4 . 20 . . . . Repair Stations 16 | . 2 . . . 2 . . . . . 9 3 . . . Recycling Units 15 | . 7 . . . 2 . . . . . 6 . . . . Scanalyzers 22 | . . . . . 12 . . . . . 10 . . . . Garrison Access 7 | . . . . . 2 . 2 . 2 . 1 . . . . Terminal Hacks 76 | . 11 4 2 4 10 4 . 1 5 1 8 11 1 . 14 Record 1 | . . . 1 . . . . . . . . . . . . Part Schematic 4 | . . . . . . . . . . . 4 . . . . Robot Schematic 2 | . . . . . . . . . 1 . 1 . . . . Robot Analysis 9 | . 4 . . . 4 . . . . . . 1 . . . Prototype ID Bank 15 | . 2 4 . 3 . . . . 1 . . 3 . . 2 Open Door 9 | . . . . 1 . 1 . . . . 1 5 1 . . Emergency Access Points 1 | . . . . . . 1 . . . . . . . . . Machine Index 2 | . . . . . . . . . 1 . . . . . 1 Terminal Index 1 | . . . . . . . . . . . . 1 . . . Locate Traps 9 | . 3 . . . 2 . . . 1 . 1 . . . 2 Reprogram Traps 5 | . . . . . 2 . . . . . . . . . 3 Recall Investigation 1 | . . . . . . . . . . . 1 . . . . Hauler Manifests 5 | . 1 . . . 2 . . . 1 . . . . . 1 Zone Layout 7 | . 1 . . . . . . . . . . 1 . . 5 Garrison Registry 3 | . . . . . . 1 . 1 . 1 . . . . . Patrol Navigation 1 | . . . . . . 1 . . . . . . . . . Derelict Proto ID Bank 1 | . . . 1 . . . . . . . . . . . . Fabricator Hacks 17 | . . . . . . . . . 2 . 15 . . . . Network Status 1 | . . . . . . . . . . . 1 . . . . Load Schematic 8 | . . . . . . . . . 1 . 7 . . . . Build 8 | . . . . . . . . . 1 . 7 . . . . Repair Station Hacks 12 | . 2 . . . 2 . . . . . 6 2 . . . Scan Component 6 | . 1 . . . 1 . . . . . 3 1 . . . Repair 6 | . 1 . . . 1 . . . . . 3 1 . . . Recycling Unit Hacks 4 | . 2 . . . 1 . . . . . 1 . . . . Retrieve Components 4 | . 2 . . . 1 . . . . . 1 . . . . Scanalyzer 19 | . . . . . 10 . . . . . 9 . . . . Insert Component 9 | . . . . . 5 . . . . . 4 . . . . Analyze 10 | . . . . . 5 . . . . . 5 . . . . Garrison Access Hacks 5 | . . . . . 1 . 2 . 1 . 1 . . . . Unlock Access 3 | . . . . . 1 . 1 . 1 . . . . . . Seal Access 1 | . . . . . . . . . . . 1 . . . . Coupler Status 1 | . . . . . . . 1 . . . . . . . . Unauthorized Hacks 51 | . 11 . . . 13 1 . . 6 . 8 9 . . 3 Terminals 33 | . 7 . . . 9 1 . . 4 . 1 8 . . 3 Assimilate 2 | . . . . . 1 . . . . . . . . . 1 Botnet 11 | . 2 . . . 2 1 . . 1 . 1 2 . . 2 Detonate 2 | . . . . . 1 . . . 1 . . . . . . Operators 2 | . . . . . . . . . 1 . . 1 . . . Skim 16 | . 5 . . . 5 . . . 1 . . 5 . . . Fabricators 6 | . . . . . . . . . 2 . 4 . . . . Prioritize 3 | . . . . . . . . . 1 . 2 . . . . Liberate 3 | . . . . . . . . . 1 . 2 . . . . Repair Stations 3 | . . . . . . . . . . . 2 1 . . . Mechanics 1 | . . . . . . . . . . . 1 . . . . Patch 2 | . . . . . . . . . . . 1 1 . . . Recycling Units 6 | . 4 . . . 1 . . . . . 1 . . . . Reject 4 | . 2 . . . 1 . . . . . 1 . . . . Mask 1 | . 1 . . . . . . . . . . . . . . Tunnel 1 | . 1 . . . . . . . . . . . . . . Scanalyzers 2 | . . . . . 2 . . . . . . . . . . Extract 2 | . . . . . 2 . . . . . . . . . . Garrison Access 1 | . . . . . 1 . . . . . . . . . . Reprogram 1 | . . . . . 1 . . . . . . . . . . Data Cores Recovered . | . . . . . . . . . . . . . . . . Used . | . . . . . . . . . . . . . . . . Hacking Detections 57 | . 9 1 . 1 11 4 . 1 3 1 11 8 1 . 6 Full Trace Events 10 | . . 1 . 1 1 4 . . . . 3 . . . . Feedback Events . | . . . . . . . . . . . . . . . . Feedback Blocked . | . . . . . . . . . . . . . . . . Robot Schematics Acquired 2 | . . . . . . . . . 1 . 1 . . . . Robots Built 18 | . . . . . . . . . 3 . 15 . . . . Authchips 4 | . . . . . . . . . . . 4 . . . . Time 368 | . . . . . . . . . 116 . 252 . . . . Total Robot Build Rating 99 | . . . . . . . . . 9 . 90 . . . . Part Schematics Acquired 15 | . . . . . 7 . . . . . 8 . . . . Parts Built 4 | . . . . . . . . . . . 4 . . . . Authchips . | . . . . . . . . . . . . . . . . Time 83 | . . . . . . . . . . . 83 . . . . Total Part Build Rating 16 | . . . . . . . . . . . 16 . . . . Parts Repaired 6 | . 1 . . . 1 . . . . . 3 1 . . . Time 219 | . 32 . . . 26 . . . . . 139 22 . . . Parts Recycled . | . . . . . . . . . . . . . . . . Recycled Matter . | . . . . . . . . . . . . . . . . Retrieved Matter . | . . . . . . . . . . . . . . . . Retrieved Components 14 | . 5 . . . 2 . . . . . 7 . . . . Parts Scanalyzed 9 | . . . . . 5 . . . . . 4 . . . . Part Schematics Acquired 9 | . . . . . 5 . . . . . 4 . . . . Parts Damaged 3 | . . . . . 1 . . . . . 2 . . . . Bothacking | -11 -10 -10 -10 -9 -8 -8 -8 -8 -7 -7 -6 -6 -6 -6 -6 ------------ Run | Yrd Mat Min Exi Min Mat Gar Mat Gar Fac Gar Fac Ext Cet Arc Hub Used RIF Installer 4 | . . . . . . 2 . 1 . 1 . . . . . Patrol Navigation 1 | . . . . . . 1 . . . . . . . . . Alert ID Control 1 | . . . . . . . . 1 . . . . . . . Structural Interface 1 | . . . . . . . . . . 1 . . . . . Robots Hacked 42 | . . . . . . 5 . 6 3 15 9 1 . 2 1 Non-combat 9 | . . . . . . . . . 3 . 6 . . . . Combat 33 | . . . . . . 5 . 6 . 15 3 1 . 2 1 Robot Hacks Applied 54 | . . . . . . 5 . 7 7 16 15 1 . 2 1 parse_system 1 | . . . . . . . . . . . . . . . 1 find_fabricator 2 | . . . . . . . . . . . 2 . . . . drop_inventory 4 | . . . . . . . . . 1 . 3 . . . . locate_traps 2 | . . . . . . . . . 1 . 1 . . . . reprogram_traps 2 | . . . . . . . . . 1 . 1 . . . . summon_haulers 1 | . . . . . . . . . 1 . . . . . . overload_power 1 | . . . . . . . . . . 1 . . . . . disable_weapons 1 | . . . . . . . . . . . 1 . . . . reboot_system 2 | . . . . . . . . 1 . 1 . . . . . overwrite_iff 15 | . . . . . . . . 1 . 9 2 1 . 2 . formatsys_low 6 | . . . . . . . . . 3 . 3 . . . . formatsys_high 17 | . . . . . . 5 . 5 . 5 2 . . . . Relay Couplers Released 62 | . . . . . . 19 . 24 3 12 . . . . 4 Machine Destruction 59 | . . . . . . 19 . 24 . 12 . . . . 4 Programmers 3 | . . . . . . . . . 3 . . . . . . Attached 15 | . . . . . . 4 1 3 1 3 3 . . . . Fabnet Peak Effective % . | . . . . . . . . . . . . . . . . Robots Rewired 1 | . . . . . . . . . . . 1 . . . . Allies Hacked . | . . . . . . . . . . . . . . . . Hacks Repelled . | . . . . . . . . . . . . . . . . Allies | -11 -10 -10 -10 -9 -8 -8 -8 -8 -7 -7 -6 -6 -6 -6 -6 -------- Run | Yrd Mat Min Exi Min Mat Gar Mat Gar Fac Gar Fac Ext Cet Arc Hub Total Allies 76 | . . . . 5 2 7 . 6 5 13 24 7 5 2 . Largest Group 13 | . . . . 3 3 2 . 5 10 9 13 13 9 2 1 Highest-Rated Group 704 | . . . . 43 40 64 . 88 215 193 530 525 704 145 96 Highest-Rated Ally 159 | . . . . 31 16 39 . 22 26 32 42 159 159 96 96 Total Orders 34 | . . . . . . 3 . 5 6 10 3 6 . . 1 STAY 13 | . . . . . . 3 . 2 3 4 . 1 . . . ROAM 10 | . . . . . . . . . . 3 1 5 . . 1 FOLLOW 7 | . . . . . . . . 2 2 3 . . . . . GUARD 1 | . . . . . . . . . 1 . . . . . . AID 2 | . . . . . . . . . . . 2 . . . . RETURN 1 | . . . . . . . . 1 . . . . . . . Ally Attacks 284 | . . . . 7 54 48 . 6 7 59 34 26 29 9 5 Total Damage 10131 | . . . . 166 850 1108 . 30 48 1207 2278 2493 1261 272 418 Kills 80 | . . . . 1 8 14 . . . 4 21 20 5 . 7 Allies Corrupted 2 | . . . . . . . . . 2 . . . . . . Allies Melted 1 | . . . . . . . . . . . . 1 . . . Intel | -11 -10 -10 -10 -9 -8 -8 -8 -8 -7 -7 -6 -6 -6 -6 -6 ------- Run | Yrd Mat Min Exi Min Mat Gar Mat Gar Fac Gar Fac Ext Cet Arc Hub Robot Analysis Total 9 | . 4 . . . 4 . . . . . . 1 . . . Derelict Logs Recovered 2 | . . 2 . . . . . . . . . . . . . Drone Launches 5 | . . . . . . . . 2 3 . . . . . . Drone Recoveries 2 | . . . . . . . . 2 . . . . . . . Exploration | -11 -10 -10 -10 -9 -8 -8 -8 -8 -7 -7 -6 -6 -6 -6 -6 ------------- Run | Yrd Mat Min Exi Min Mat Gar Mat Gar Fac Gar Fac Ext Cet Arc Hub Turns Passed 20585 | 69 1294 863 340 990 2779 1997 355 1265 1098 1370 4114 2409 617 124 901 Spaces Moved 10749 | 39 650 515 212 540 1317 1043 150 843 664 813 2056 1154 222 42 489 Core 42 | 6 . . . . . . . . . . . . . . 36 Treads 6014 | 33 650 515 212 540 1317 1043 111 138 94 167 583 414 142 42 13 Legs . | . . . . . . . . . . . . . . . . Wheels 4693 | . . . . . . . 39 705 570 646 1473 740 80 . 440 Hover . | . . . . . . . . . . . . . . . . Flight . | . . . . . . . . . . . . . . . . Fastest Speed 50 | 50 160 160 160 160 160 160 115 115 115 115 115 130 145 240 50 Average Speed 156 | 152 160 160 160 160 166 160 144 124 126 134 161 176 210 240 148 Slowest Speed 240 | 160 160 160 160 160 240 160 160 160 160 160 240 240 240 240 240 Overloaded Moves . | . . . . . . . . . . . . . . . . Propulsion Burnouts . | . . . . . . . . . . . . . . . . Robots Hopped . | . . . . . . . . . . . . . . . . Cave-ins Triggered . | . . . . . . . . . . . . . . . . Exploration Rate (%) 63 | 4 93 93 61 98 78 89 13 73 11 75 41 97 74 64 49 Regions Visited 15 Branch Regions 7 Pre-discovered Areas 9 | . 1 . 1 1 5 . . . . . . 1 . . . Known Exits Taken 12 | 1 1 1 1 1 1 . 1 . 1 . 1 1 1 1 . Unknown Exits Taken . | . . . . . . . . . . . . . . . . Scrap Searched 1 | . . . . 1 . . . . . . . . . . . Spaces Dug 7 | . . . . . 2 . 2 . 1 . 2 . . . . Terrain Destroyed 1904 | . 158 43 . 49 243 32 68 107 82 132 385 112 3 29 461 Melee 5 | . . . . . 2 . . . 1 . 2 . . . . Projectile 37 | . 1 . . 1 1 . 3 3 1 5 13 9 . . . AOE 1862 | . 157 43 . 48 240 32 65 104 80 127 370 103 3 29 461 Terrain Rammed . | . . . . . . . . . . . . . . . . Walls Destroyed . | . . . . . . . . . . . . . . . . Machines Disabled . | . . . . . . . . . . . . . . . . Actions | -11 -10 -10 -10 -9 -8 -8 -8 -8 -7 -7 -6 -6 -6 -6 -6 --------- Run | Yrd Mat Min Exi Min Mat Gar Mat Gar Fac Gar Fac Ext Cet Arc Hub Total 13569 | 45 875 541 214 659 1737 1322 272 998 881 998 2600 1418 356 51 602 Wait 1897 | . 201 17 . 110 276 153 101 69 169 78 337 191 119 . 76 Move 10734 | 38 649 514 211 539 1316 1042 149 842 663 812 2055 1153 221 41 489 Hop . | . . . . . . . . . . . . . . . . Pick Up 70 | . 3 . 1 1 17 22 . 6 . 9 10 1 . . . Fast Attach 66 | 7 4 3 . 1 10 6 4 3 4 2 9 3 4 . 6 Attach 37 | . . . . 2 6 9 . 2 2 3 9 1 1 . 2 Detach 12 | . 2 . 2 1 1 1 . 2 . . 2 . . . 1 Swap 99 | . . . . . 11 12 3 9 13 13 24 8 . 2 4 Drop 80 | . 1 1 . 1 14 27 5 7 4 5 9 1 4 . 1 Fire 509 | . 15 6 . 4 84 34 10 42 25 68 134 52 7 8 20 Melee 19 | . . . . . 2 14 . . 1 . 2 . . . . Ram 2 | . . . . . . . . . . . . . . . 2 Kick . | . . . . . . . . . . . . . . . . Crush 1 | . . . . . . . . . . . . . . . 1 Escape Stasis 38 | . . . . . . . . 14 . 8 8 8 . . . Rewire 5 | . . . . . . 2 . 2 . . 1 . . . . Trap . | . . . . . . . . . . . . . . . . Miscellaneous . | . . . . . . . . . . . . . . . . Route ------- -11/Scrapyard -10/Materials (discovered 6 exits: *Mat x3 / *Min x2 / Sub) -10/Mines (discovered 3 exits: *Mat x2 / *Exi) -10/Exiles (discovered 2 exits: *Min x2) -9/Mines (discovered 2 exits: *Mat x2) -8/Materials (discovered 6 exits: *Fac x3 / *Sto x2 / Gar) -8/Garrison (discovered 3 exits: *Mat x3) -8/Materials (discovered 4 exits: Fac / *Sto x2 / Gar) -8/Garrison (discovered 3 exits: *Fac x3) -7/Factory (discovered 2 exits: *Low / Gar) -7/Garrison (discovered 3 exits: *Fac x3) -6/Factory (discovered 4 exits: *Fac x2 / *Low / *Ext) -6/Extension (discovered 3 exits: *Fac x2 / *Cet) -6/Cetus (discovered 2 exits: *Fac / *Arc) -6/Archives -6/Hub_04(d) (discovered 2 exits: *Fac x2) History --------- Turn | Location | Event 14 | -11/Scrapyard | Identified exit to Materials 14 | -11/Scrapyard | Discovered exit to Materials (range 15) 70 | -11/Scrapyard | Entered Materials 70 | -10/Materials | Evolved 1 slot: Utility x1 264 | -10/Materials | Identified exit to Materials 264 | -10/Materials | Discovered exit to Materials (range 15) 315 | -10/Materials | Build established: Hacker-Mutant 374 | -10/Materials | Identified exit to Mines 374 | -10/Materials | Discovered exit to Mines (range 6) 580 | -10/Materials | Discovered exit to Materials (range 3) 687 | -10/Materials | Learned Recycling recycling unit intel 770 | -10/Materials | Discovered exit to Mines (range 12) 809 | -10/Materials | Learned Storage security intel 854 | -10/Materials | Loaded intel: 8 trap records 890 | -10/Materials | Loaded intel: 28 non-interactive machine locations 914 | -10/Materials | Learned 2 Storage zone layouts 931 | -10/Materials | Discovered exit to Materials (range 10) 947 | -10/Materials | Learned 2 Storage zone layouts 991 | -10/Materials | Identified exit to Subcaves 1065 | -10/Materials | Repaired Particle Cannon 1364 | -10/Materials | Entered Mines 1390 | -10/Mines | Discovered exit to Materials (range 8) 1893 | -10/Mines | Learned 4 Materials zone layouts 1985 | -10/Mines | Discovered exit to Materials (range 15) 2091 | -10/Mines | Deemed a non-threat by the Exiles lab entrance 2091 | -10/Mines | Identified exit to Exiles 2091 | -10/Mines | Discovered exit to Exiles (range 5) 2182 | -10/Mines | Learned 2 Materials zone layouts 2227 | -10/Mines | Entered Exiles 2255 | -10/Exiles | Identified exit to Mines 2255 | -10/Exiles | Discovered exit to Mines (range 15) 2274 | -10/Exiles | Met 8R-AWN 2298 | -10/Exiles | Met EX-HEX 2347 | -10/Exiles | Met EX-BIN 2365 | -10/Exiles | Aligned with FarCom system 2367 | -10/Exiles | Given EX-Vault access code 2403 | -10/Exiles | Opened EX-Vault 2414 | -10/Exiles | Found AWS/Gauss 2447 | -10/Exiles | Warned to stay clear of 0b10 Research branches 2489 | -10/Exiles | Met EX-DEC 2503 | -10/Exiles | Learned location of Zion (-6) 2548 | -10/Exiles | Discovered exit to Mines (range 14) 2567 | -10/Exiles | Left Exiles lab with AWS/Gauss 2567 | -10/Exiles | Entered Mines 2662 | -9/Mines | Identified exit to Materials 2662 | -9/Mines | Discovered exit to Materials (range 10) 2873 | -9/Mines | Assembled infested the area 2925 | -9/Mines | Discovered exit to Materials (range 14) 2990 | -9/Mines | Learned location of Storage (-8) 3450 | -9/Mines | Assisted by bots powering up and referring to "LRC-V3" 3494 | -9/Mines | Found the Drone Emporium 3503 | -9/Mines | Found Prototype Device 3503 | -9/Mines | Identified Thief Drone Bay 3557 | -9/Mines | Entered Materials 3557 | -8/Materials | Accompanied by 3 allies 3557 | -8/Materials | Evolved 4 slots: Propulsion x2, Utility x2 3558 | -8/Materials | Identified exit to Storage 3558 | -8/Materials | Identified exit to Factory 4006 | -8/Materials | Build established: Hacker-Skirmisher 4092 | -8/Materials | Lost 3 allies 4863 | -8/Materials | Discovered exit to Factory (range 4) 4962 | -8/Materials | Learned Factory scanalyzer intel 5053 | -8/Materials | Learned location of 1 exit from Lower Caves 5055 | -8/Materials | Learned location of Lower Caves (-6) 5064 | -8/Materials | Learned 2 Lower Caves zone layouts 5077 | -8/Materials | Build established: Hacker-Mutant 5650 | -8/Materials | Destroyed 7 combat bots 5844 | -8/Materials | Repaired Lgt. Treads 6036 | -8/Materials | Garrison activated, responded to threat 6221 | -8/Materials | Identified exit to Garrison 6334 | -8/Materials | Garrison activated, responded to threat 6336 | -8/Materials | Entered Garrison 6336 | -8/Garrison | Accompanied by 2 allies 6440 | -8/Garrison | Triggered checkpoint 6549 | -8/Garrison | Garrison Relay disabled 6650 | -8/Garrison | Installed Relay Interface Framework 6780 | -8/Garrison | Triggered checkpoint 6781 | -8/Garrison | Triggered checkpoint 6889 | -8/Garrison | Identified exit to Materials 6889 | -8/Garrison | Discovered exit to Materials (range 10) 6944 | -8/Garrison | Triggered checkpoint 6960 | -8/Garrison | Build established: Bothacker-Mutant 6966 | -8/Garrison | Garrison Relay disabled 7274 | -8/Garrison | Triggered checkpoint 7315 | -8/Garrison | Discovered exit to Materials (range 14) 7340 | -8/Garrison | Discovered exit to Materials (range 65) 7340 | -8/Garrison | Discovered exit to Materials (range 7) 7340 | -8/Garrison | Discovered exit to Materials (range 40) 7393 | -8/Garrison | Triggered checkpoint 7395 | -8/Garrison | Garrison Relay disabled 7700 | -8/Garrison | Triggered checkpoint 7846 | -8/Garrison | Expanded RIF knowledge: Patrol Navigation 7876 | -8/Garrison | Garrison Relay disabled 7910 | -8/Garrison | Rescued a captive Derelict 7920 | -8/Garrison | Rescued a captive Derelict 7932 | -8/Garrison | Triggered checkpoint 8333 | -8/Garrison | Entered Materials 8333 | -8/Materials | Discovered exit to Storage (range 7) 8675 | -8/Materials | Identified exit to Garrison 8688 | -8/Materials | Entered Garrison 8784 | -8/Garrison | Triggered checkpoint 8823 | -8/Garrison | Destroyed 8 combat bots 8875 | -8/Garrison | Triggered checkpoint 8884 | -8/Garrison | Triggered checkpoint 8932 | -8/Garrison | Discovered exit to Factory (range 14) 8954 | -8/Garrison | Expanded RIF knowledge: Alert ID Control 9010 | -8/Garrison | Triggered checkpoint 9012 | -8/Garrison | Discovered exit to Factory (range 61) 9012 | -8/Garrison | Discovered exit to Factory (range 70) 9012 | -8/Garrison | Discovered exit to Factory (range 18) 9056 | -8/Garrison | Garrison Relay disabled 9465 | -8/Garrison | Garrison Relay disabled 9480 | -8/Garrison | Triggered checkpoint 9641 | -8/Garrison | Garrison Relay disabled 9703 | -8/Garrison | Garrison Relay disabled 9709 | -8/Garrison | Garrison Relay disabled 9715 | -8/Garrison | Garrison Relay disabled 9953 | -8/Garrison | Entered Factory 9953 | -7/Factory | Accompanied by 5 allies 9953 | -7/Factory | Evolved 2 slots: Power x1, Utility x1 9954 | -7/Factory | Loaded intel: 4 scanalyzer locations 10559 | -7/Factory | P-60 Hacker assimilated allied Administrator 4a 10787 | -7/Factory | Identified exit to Lower Caves 10787 | -7/Factory | Discovered exit to Lower Caves (range 8) 10831 | -7/Factory | Lost 3 allies 10900 | -7/Factory | Identified exit to Garrison 10919 | -7/Factory | Fabricated C-17 Slicer? 10959 | -7/Factory | Cargo convoy interrupted 11051 | -7/Factory | Entered Garrison 11051 | -7/Garrison | Accompanied by 9 allies 11057 | -7/Garrison | Triggered checkpoint 11131 | -7/Garrison | Triggered checkpoint 11189 | -7/Garrison | Lost 8 allies 11195 | -7/Garrison | Spotted B-75 Beast 11195 | -7/Garrison | Spotted B-75 Beast 11201 | -7/Garrison | Destroyed B-75 Beast 11210 | -7/Garrison | Allies destroyed B-75 Beast 11433 | -7/Garrison | Garrison Relay disabled 11545 | -7/Garrison | Triggered checkpoint 11550 | -7/Garrison | Triggered checkpoint 11585 | -7/Garrison | Triggered checkpoint 11642 | -7/Garrison | Lost 8 allies 11724 | -7/Garrison | Identified exit to Factory 11724 | -7/Garrison | Discovered exit to Factory (range 4) 11751 | -7/Garrison | Discovered exit to Factory (range 7) 11751 | -7/Garrison | Discovered exit to Factory (range 63) 11751 | -7/Garrison | Discovered exit to Factory (range 75) 11755 | -7/Garrison | Triggered checkpoint 11886 | -7/Garrison | Expanded RIF knowledge: Structural Interface 11982 | -7/Garrison | Spotted B-75 Beast 12009 | -7/Garrison | Destroyed B-75 Beast 12421 | -7/Garrison | Entered Factory 12421 | -6/Factory | Evolved 2 slots: Utility x2 13471 | -6/Factory | First assault squad dispatched 13507 | -6/Factory | Identified exit to Factory 13507 | -6/Factory | Discovered exit to Factory (range 15) 13824 | -6/Factory | Assembled infested ambush trap array 14515 | -6/Factory | Discovered exit to Factory (range 15) 14781 | -6/Factory | P-60 Hacker assimilated allied Y-54 Guardian 14836 | -6/Factory | Identified exit to Lower Caves 14836 | -6/Factory | Discovered exit to Lower Caves (range 12) 15515 | -6/Factory | Fabricated Imp. Hardlight Generator (x2) 15551 | -6/Factory | Fabricated Imp. Utility Shielding (x2) 15809 | -6/Factory | Fabricated C-35 Carver? 16078 | -6/Factory | Repaired Broken Imp. Shock Absorption System? 16084 | -6/Factory | Repaired Broken System Restoration Module 16116 | -6/Factory | Repaired Imp. Heavy Treads 16325 | -6/Factory | Fabricated C-35 Carver (x3) 16374 | -6/Factory | Fabricated C-35 Carver (x3) 16417 | -6/Factory | Fabricated C-35 Carver (x3) 16460 | -6/Factory | Fabricated C-35 Carver? 16517 | -6/Factory | Identified exit to Extension 16517 | -6/Factory | Discovered exit to Extension (range 5) 16535 | -6/Factory | Entered Extension 16535 | -6/Extension | Accompanied by 13 allies 16691 | -6/Extension | Spotted B-75 Beast 16735 | -6/Extension | Destroyed B-75 Beast 16736 | -6/Extension | Lost 8 allies 16919 | -6/Extension | Build established: Hacker-Mutant 17417 | -6/Extension | Disrupted transfer network 18140 | -6/Extension | Learned 4 Upper Caves zone layouts 18203 | -6/Extension | Repaired Arm. Huge Wheel 18223 | -6/Extension | Rescued a captive Derelict 18236 | -6/Extension | Learned location of 2 exits from Proximity Caves 18268 | -6/Extension | Learned location of 1 exit from Lower Caves 18289 | -6/Extension | Learned 4 Factory zone layouts 18318 | -6/Extension | Learned location of 1 exit from Hub_04(d) 18383 | -6/Extension | Rescued A7 18500 | -6/Extension | Rescued a captive Derelict 18501 | -6/Extension | Rescued a captive Derelict 18516 | -6/Extension | Rescued a captive Derelict 18523 | -6/Extension | Rescued a captive Derelict 18623 | -6/Extension | Rescued a captive Derelict 18895 | -6/Extension | Identified exit to Cetus 18895 | -6/Extension | Discovered exit to Cetus (range 16) 18944 | -6/Extension | Entered Cetus 18944 | -6/Cetus | Accompanied by 6 allies (A7) 18949 | -6/Cetus | Acquired a Cetus Manufacturing Module code from A7 18964 | -6/Cetus | Spotted Cetus Guard 18964 | -6/Cetus | Spotted Cetus Guard 18966 | -6/Cetus | Spotted Cetus Guard 18966 | -6/Cetus | Spotted Cetus Guard 18969 | -6/Cetus | Allies destroyed Cetus Guard 18974 | -6/Cetus | Allies destroyed Cetus Guard 18978 | -6/Cetus | Allies destroyed Cetus Guard 18989 | -6/Cetus | Allies destroyed Cetus Guard 19082 | -6/Cetus | Started Cetus Manufacturing Module 19093 | -6/Cetus | Escorted A7 to Cetus Mainframe 19107 | -6/Cetus | Manufactured an Enhanced Grunt 19132 | -6/Cetus | Manufactured an Enhanced Grunt 19157 | -6/Cetus | Manufactured an Enhanced Grunt 19182 | -6/Cetus | Manufactured an Enhanced Grunt 19207 | -6/Cetus | Manufactured an Enhanced Grunt 19222 | -6/Cetus | Identified exit to Archives 19222 | -6/Cetus | Discovered exit to Archives (range 16) 19253 | -6/Cetus | Spotted Cetus Guard 19254 | -6/Cetus | Spotted Cetus Guard 19257 | -6/Cetus | Spotted Cetus Guard 19257 | -6/Cetus | Spotted Cetus Guard 19267 | -6/Cetus | Destroyed Cetus Guard 19281 | -6/Cetus | Discovered exit to Factory (range 15) 19293 | -6/Cetus | Met Revision 17 19298 | -6/Cetus | Lost 8 allies 19561 | -6/Cetus | Entered Archives 19561 | -6/Archives | Accompanied by 1 ally 19646 | -6/Archives | Identified exit to Hub_04(d) 19646 | -6/Archives | Discovered exit to Hub_04(d) (range 15) 19685 | -6/Archives | Entered Hub_04(d) 19685 | -6/Hub_04(d) | Accompanied by 1 ally 20002 | -6/Hub_04(d) | Discovered exit to Factory (range 5) 20321 | -6/Hub_04(d) | Garrison activated, responded to threat 20324 | -6/Hub_04(d) | Disrupted transfer network 20391 | -6/Hub_04(d) | Network Hub disabled 20391 | -6/Hub_04(d) | Network Hub disabled 20438 | -6/Hub_04(d) | Spotted Lightning 20440 | -6/Hub_04(d) | Spotted Lightning 20546 | -6/Hub_04(d) | Found Prototype Device 20546 | -6/Hub_04(d) | Identified Exp. Phase Shifter 20549 | -6/Hub_04(d) | System corruption reached 10% 20552 | -6/Hub_04(d) | Spotted Lightning 20556 | -6/Hub_04(d) | Core integrity fell below 50% 20557 | -6/Hub_04(d) | Spotted Lightning 20567 | -6/Hub_04(d) | Released all parts (5) 20568 | -6/Hub_04(d) | Spotted Lightning 20569 | -6/Hub_04(d) | Core integrity fell below 20% 20586 | -6/Hub_04(d) | Destroyed by G-67 Veteran with Plasma Rifle Last Messages --------------- 20568_ Slammed into Lightning. 20568_ Penetrated by EMDS Slug. 20568_ EMDS Slug penetrates Wall. 20572_ Wall collapses. 20573_ Penetrated by EMDS Slug. 20579_ System corrupted: Energy discharge (-39). 20580_ C-30 ARC bursts open, deploying its payload. 20580_ G-67 Veteran unfolds itself. 20580_ G-50 Soldier unfolds itself. 20580_ M-28 Smith unfolds itself. 20580_ Critical hit (Burn: +37). 20581_ RIF reveals location of hidden door. 20581_ O-24 Administrator: "IFF HANDSHAKE FAILED. SECURING TERMINAL." 20582_ C-30 ARC bursts open, deploying its payload. 20582_ S-27 Virus unfolds itself. 20584_ Acquired 67 matter. 20585_ EMDS Slug penetrates Earth. Map ----- +----------------------------------------------------+ | ?????????????????????????????? # !]/ # #??? | | ?????????????????????????????? # " # #??? | | ?????????????????????????????? # """ # #??? | | ?????????????????????????????? # """"" # #??? | | ?????????????????????????????? # """"""" # #??? | | ????????????????????????????? # """"" # #??? | | ????????????????????????????? # """ # #??? | | ????????????????????????????? # " # #??? | | ????????????????????????????? # # #??? | | ????????????????????????????? # # #??? | | ????????????????????????????? ######++##### #??? | | ?????????????????????????????! ?????# #???# #??? | | ??????????????????????????###/#?????# #???# #??? | | ?????????????????????#+???# s#?????#h #???# #??? | | ?????????????????????# ???# s#?????#h #???# #??? | | ???????????????????### ???#! #????## ##### #??? | | ??????????????????? #??# ######h # #??? | | ??????????????? ???? #??# ; # #??? | | ??????????????? ????? #?##!s # # ##/#### | | ??????????????? ?????# #?#; ; ;;# # # # | | ??????????????? ######;###; ; ; ###### # " " # | | ??????????????? # ;;; ;; ;;###### # " " # | | ??????????????? + ; m + " " # | | ??????????????? # = ;;######## # | | ??????????????# # % ;;######## ! # | | ??????????????# #" @ [%* + +! # | | ??????????????# #"" = # [ [ " ########### | | ??????????????# #""" = l #?????????? | | ????########### #"""" ! gg #######???? | | ????# # # # "" ####? | | ????# # # # " """#? | | ????# ! # * % ! #? | | ????# + =%= !g % #? | | ????# # =%= "#? | | ????# #### ## #;";;;; ## """#? | | ????# #??# # ###?? | | ????# #??# !! # ######### | | ????######/####??# !! / # # !# | | ########?# #?????# # # # | | #?# #?????# ## [!# | | "" """ #?# #?????# [ ! # | | ### ###???#### #######"" # # | | "" """ #"" ""##?????###??# " [ ! # | | " = #??????????# " ! # # | | " ] #??????????# "# "" # | | "T"" " [ = #??????????" "# "" # | | """" =" =* ###########" "#"# # # T" # | | ####+### # " "" " # # # "" # | | # " " ## # " # "" ? | | # """ " " ## " #??? " #? ?? | +----------------------------------------------------+ Best States ------------- Heat Dissipation 75 Energy Generation 45 Energy Capacity 600 Matter Stores 300 Matter Capacity 300 Sight Range 16 Robot Scan Range 14 Terrain Scan Range 16 Terrain Scan Density 10 Additional Mass Support 12 Armor Coverage 1200 Resistance: KI 60 Resistance: TH 60 Resistance: EX 85 Resistance: EM 35 Resistance: I 35 Resistance: S 35 Resistance: P 35 Utility Shielding 66 Evasion (%) 50 Recoil Reduction 4 Particle Charging 15 Offensive Hacking 46 Defensive Hacking 22 Relay Coupler Types 2 Relay Coupler Value 74 Authchip Count 4 Item Schematics ----------------- System Shield | -8/Materials | Scanalyzed Trap Scanner | -8/Materials | Scanalyzed Imp. Datajack | -8/Materials | Scanalyzed Imp. Sensor Array | -8/Materials | Extracted Hardlight Generator | -8/Materials | Scanalyzed Imp. Utility Shielding | -8/Materials | Scanalyzed Adv. Weight Redist. System | -8/Materials | Extracted Quantum Capacitor | -6/Factory | Hacked Adv. Hacking Suite | -6/Factory | Hacked Adv. System Shield | -6/Factory | Hacked Imp. Hardlight Generator | -6/Factory | Hacked Imp. Shock Absorption System | -6/Factory | Scanalyzed Imp. Thermal Shield | -6/Factory | Scanalyzed Imp. Focal Shield | -6/Factory | Scanalyzed System Restoration Module | -6/Factory | Scanalyzed Robot Schematics ------------------ C-17 Slicer | -7/Factory | Hacked C-35 Carver | -6/Factory | Hacked Fabricated ------------ C-17 Slicer | x3 | -7/Factory Imp. Hardlight Generator | x2 | -6/Factory Imp. Utility Shielding | x2 | -6/Factory C-35 Carver | x3 | -6/Factory C-35 Carver | x3 | -6/Factory | Authchip C-35 Carver | x3 | -6/Factory | Authchip C-35 Carver | x3 | -6/Factory | Authchip C-35 Carver | x3 | -6/Factory | Authchip Alien Tech Used ----------------- None Achievements -------------- None Challenges ------------ None Game ------ Seed FluxArchitectFlakker Manual? 0 Play Time 03:17:48 Cumulative 559.3 hours Start 2024.11.26 @ 13:56:54 End 2024.11.26 @ 19:53:50 Sessions 3 Manual Loads 0 Difficulty Explorer Special Mode AFD2021/Volatile Game No. 91 Rogue 6 Adventurer 6 Explorer 79 Win Type - Total 39 Types 15/7/2/5/2/1/1/4/2 Lore% 87 Gallery% 87 Achievement% 91 Wizard Run 0 Options --------- Layout 1 ASCII 0 Keyboard 0 Movement Mouse Keybinds 0 Fullscreen 1 Font 24/Smallcaps Map View 50x35 Zoom Use 0% Tactical HUD 1 Map Filters NONE Filters NONE Steam 1 RUN: 1d68a4c8-3004-4f26-8681-407a6d7ed819